bitfinex/quotes_SOLUSD_20251207
["timestamp","ask_amount","ask_price","bid_price","bid_amount"]
[1765123979141,0.88,131.06,131.05,10.26428601]
[1765123979327,0.88,131.06,131.05,17.89496132]
[1765123980144,0.88,131.06,131.04,10.26428601]
[1765123980325,0.68,131.05,131.04,10.26428601]
[1765123980841,0.68,131.05,131.04,17.89544059]
[1765123981342,0.2,131.06,131.04,17.89544059]
[1765123981550,0.88,131.06,131.05,10.26428601]
[1765123982635,0.2,131.06,131.05,10.26428601]
[1765123983359,0.88,131.06,131.05,10.26428601]
[1765123984039,0.88,131.06,131.05,17.89496132]
[1765123984341,0.2,131.06,131.05,18.11496132]
[1765123984544,0.2,131.07,131.06,25.11880892]
[1765123984746,0.2,131.1,131.09,26.57315001]
[1765123984923,0.2,131.1,131.09,35.11315001]
[1765123985322,0.2,131.1,131.09,42.74149694]
[1765123985736,1e-08,131.1,131.09,51.67752322]
[1765123986046,1e-08,131.1,131.09,74.5053322]
[1765123986850,1e-08,131.1,131.09,87.69620302]
[1765123987034,0.88,131.17,131.1,8.80994492]
[1765123987229,0.2,131.17,131.16,6.59543541]
[1765123989230,0.2,131.17,131.16,14.2197111]
[1765123990136,0.2,131.2,131.16,49.58926433]
[1765123990329,0.88,131.2,131.19,6.59543541]
[1765123991048,0.88,131.2,131.17,6.59543541]
[1765123991248,0.2,131.2,131.19,6.59543541]
[1765123992262,0.88,131.2,131.19,6.59543541]
[1765123992563,0.88,131.2,131.18,6.59543541]
[1765123992858,0.68,131.19,131.17,14.21910428]
[1765123993235,0.68,131.19,131.16,6.59543541]
[1765123993438,0.68,131.19,131.14,14.22087387]
[1765123994638,8.30266147,131.19,131.14,6.59543541]
[1765123994839,0.68,131.19,131.15,6.59543541]
[1765123995153,0.68,131.18,131.15,6.59543541]
[1765123995740,0.68,131.18,131.14,6.59543541]
[1765123996156,0.68,131.18,131.12,24.848864]
[1765123996157,6.59543541,131.17,131.11,25.66309893]
[1765123996457,0.68,131.16,131.11,25.66309893]
[1765123996653,0.68,131.16,131.12,7.62648606]
[1765123996855,0.2,131.2,131.14,7.62509538]
[1765123997042,0.68,131.18,131.14,7.62509538]
[1765123997352,7.27543541,131.18,131.14,7.62509538]
[1765123997530,7.27543541,131.18,131.12,15.11543541]
[1765123997531,6.59543541,131.17,131.12,26.69196815]
[1765123997733,7.27543541,131.17,131.13,7.62599029]
[1765123997955,0.68,131.16,131.13,7.62599029]
[1765123998154,0.68,131.16,131.12,19.06590608]
[1765123998558,7.27543541,131.16,131.11,7.62718328]
[1765123998937,6.59543541,131.14,131.11,7.62718328]
[1765123999362,0.68,131.13,131.11,7.62718328]
[1765124000145,0.68,131.13,131.1,7.62776506]
[1765124001066,14.90151587,131.13,131.09,7.6283403]
[1765124001579,6.59543541,131.1,131.06,7.62993858]
[1765124001942,7.30543541,131.09,131.06,7.62993858]
[1765124002341,0.71,131.08,131.05,7.63067531]
[1765124004346,0.71,131.08,131.04,7.63125763]
[1765124005265,0.71,131.08,131.04,26.7094017]
[1765124005567,0.71,131.08,131.04,33.30483711]
[1765124008469,7.30543541,131.08,131.04,26.7094017]
[1765124008669,7.30543541,131.08,131.04,7.63125763]
[1765124008872,0.71,131.07,131.04,7.63125763]
[1765124009259,7.30543541,131.07,131.03,7.63183385]
[1765124009770,0.71,131.06,131.03,7.63183385]
[1765124010470,0.71,131.06,131.02,7.63242253]
[1765124010679,0.71,131.06,131.02,26.71347885]
[1765124010847,15.13543541,131.09,131.03,6.59543541]
[1765124011185,0.71,131.07,131.03,6.59543541]
[1765124011970,0.71,131.07,131.02,33.30891426]
[1765124012473,0.71,131.07,131.02,26.71347885]
[1765124012666,0.71,131.07,131.03,6.59543541]
[1765124013757,0.71,131.07,131.02,33.30891426]
[1765124014448,0.71,131.07,131.02,26.71347885]
[1765124014651,7.30543541,131.07,131.02,26.71347885]
[1765124014846,14.93501152,131.07,131.02,26.71347885]
[1765124015057,0.71,131.06,131.02,26.71347885]
[1765124015483,0.71,131.06,131.02,33.30891426]
[1765124016062,0.71,131.06,131.02,26.71347885]
[1765124016462,0.71,131.06,131.02,33.30891426]
[1765124017662,0.71,131.06,131.02,26.71347885]
[1765124017978,0.71,131.06,131.02,7.63242253]
[1765124018359,0.71,131.06,131.02,14.22785794]
[1765124019083,0.71,131.06,131.02,7.63242253]
[1765124019961,6.59543541,131.03,130.99,7.63382221]
[1765124020170,6.59543541,131.03,131.0,7.6335362]
[1765124020398,0.71,131.02,130.98,6.59543541]
[1765124021676,0.71,131.02,130.99,7.63417054]
[1765124023676,0.71,131.02,130.98,19.08602449]
[1765124024179,0.71,131.02,130.98,25.6814599]
[1765124024357,0.71,131.02,130.97,14.23077174]
[1765124025504,14.93790233,131.02,130.97,7.63533633]
[1765124025696,6.59543541,131.01,130.97,7.63533633]
[1765124025883,7.30543541,131.01,130.97,7.63533633]
[1765124026194,7.30543541,131.0,130.97,7.63533633]
[1765124026396,0.71,131.0,130.97,7.63533633]
[1765124026595,0.71,130.99,130.97,7.63533633]
[1765124027295,0.71,130.99,130.96,19.08914562]
[1765124028977,0.71,131.01,130.97,6.59543541]
[1765124029299,0.71,131.0,130.97,6.59543541]
[1765124029526,0.71,131.0,130.98,7.63475339]
[1765124029979,0.71,131.02,130.98,7.63475339]
[1765124030179,0.71,131.01,130.98,7.63475339]
[1765124030605,0.71,131.01,130.97,7.63519092]
[1765124030606,7.30543541,131.01,130.97,7.63519092]
[1765124030898,0.71,131.01,130.97,7.63519092]
[1765124031208,0.71,131.0,130.97,7.63519092]
[1765124032182,0.71,131.0,130.97,69.83519092]
[1765124032596,0.71,131.0,130.97,7.63519092]
[1765124033800,8.34361961,131.0,130.97,7.63519092]
[1765124034198,0.71,130.99,130.97,7.63519092]
[1765124036429,8.34420156,130.99,130.94,22.92487705]
[1765124036798,0.71,130.98,130.94,22.92487705]
[1765124037693,0.71,130.98,130.95,7.63626636]
[1765124037895,0.71,130.98,130.93,7.63732041]
[1765124037896,6.61601305,130.97,130.93,7.63732041]
[1765124038230,6.61601305,130.96,130.91,0.1]
[1765124038391,6.61601305,130.96,130.91,7.73843192]
[1765124038592,0.71,130.95,130.91,7.73843192]
[1765124039219,15.86601305,130.95,130.91,0.1]
[1765124039526,6.61601305,130.94,130.91,0.1]
[1765124039825,14.9632146,130.94,130.91,0.1]
[1765124040033,0.71,130.93,130.91,0.1]
[1765124043836,0.7,130.96,130.91,6.71601305]
[1765124044159,6.61601305,130.94,130.91,0.1]
[1765124044651,6.61601305,130.92,130.91,0.1]
[1765124045143,7.31601305,130.92,130.91,0.1]
[1765124045511,0.7,130.92,130.91,0.1]
[1765124046916,10.95053255,130.92,130.91,0.1]
[1765124047746,18.58878491,130.92,130.91,0.1]
[1765124048655,7.63825236,130.92,130.91,0.1]
[1765124048831,0.7,130.92,130.91,0.1]
[1765124050320,8.54,130.93,130.91,0.1]
[1765124050633,0.7,130.92,130.91,0.1]
[1765124050828,0.7,130.93,130.91,0.1]
[1765124052352,35.36934147,130.92,130.86,7.64174591]
[1765124052528,35.36934147,130.92,130.84,19.42663293]
[1765124052529,10.25053255,130.9,130.84,29.67716548]
[1765124052733,10.25053255,130.9,130.86,7.64137171]
[1765124053024,10.95053255,130.9,130.86,7.64137171]
[1765124053234,0.7,130.89,130.86,7.64137171]
[1765124053430,0.7,130.89,130.87,7.64105506]
[1765124054459,8.54,130.91,130.87,0.32]
[1765124054632,0.7,130.91,130.87,10.57053255]
[1765124055229,8.54,130.92,130.88,0.32]
[1765124055430,10.95053255,130.91,130.86,7.64175454]
[1765124055849,0.7,130.9,130.86,7.64175454]
[1765124056528,0.7,130.9,130.86,18.21228709]
[1765124056730,0.7,130.9,130.86,11.82629093]
[1765124057734,0.7,130.9,130.86,30.93067729]
[1765124058942,3.86453639,130.93,130.88,11.50512318]
[1765124058943,8.54,130.93,130.88,11.50512318]
[1765124059344,17.008864,130.94,130.9,3.86453639]
[1765124059345,0.7,130.94,130.9,3.86453639]
[1765124059645,9.24,130.95,130.9,3.86453639]
[1765124059849,9.24,130.95,130.91,3.86453639]
[1765124060042,8.54,130.95,130.91,3.86453639]
[1765124060240,0.7,130.94,130.91,3.86453639]
[1765124060442,0.7,130.94,130.91,11.50282063]
[1765124060638,12.67448131,130.98,130.92,4.18453639]
[1765124060818,13.12453639,130.98,130.92,4.18453639]
[1765124061026,13.12453639,130.98,130.91,26.73537384]
[1765124061027,8.35464277,130.99,130.94,3.86453639]
[1765124061552,0.72,130.98,130.94,3.86453639]
[1765124061922,0.72,130.98,130.94,11.50122358]
[1765124062146,0.72,130.98,130.94,7.63668719]
[1765124062346,8.35520606,130.98,130.94,7.63668719]
[1765124062531,12.21974245,130.98,130.93,7.63755436]
[1765124062731,0.72,130.97,130.92,7.63805535]
[1765124062929,19.50491443,130.97,130.92,7.63805535]
[1765124063249,10.24491443,130.95,130.9,7.63902697]
[1765124063621,0.72,130.94,130.9,7.63902697]
[1765124064153,0.72,130.94,130.9,17.8839414]
[1765124064332,0.72,130.94,130.9,18.2039414]
[1765124065348,24.848864,130.97,130.92,10.24491443]
[1765124065349,25.568864,130.97,130.92,10.24491443]
[1765124065648,9.26,130.97,130.93,10.24491443]
[1765124066227,9.26,130.97,130.94,7.63708568]
[1765124066433,0.72,130.96,130.94,7.63708568]
[1765124066841,8.54,130.97,130.94,7.63708568]
[1765124067151,0.72,130.96,130.94,7.63708568]
[1765124068257,8.54,130.97,130.94,7.63708568]
[1765124068427,8.54,130.97,130.94,17.88200011]
[1765124068635,8.54,130.97,130.94,18.20200011]
[1765124069149,8.54,130.97,130.94,17.88200011]
[1765124069840,9.26,130.97,130.94,17.88200011]
[1765124070157,0.72,130.96,130.94,7.63708568]
[1765124070532,8.54,130.97,130.94,7.63708568]
[1765124070750,9.26,130.97,130.94,7.63708568]
[1765124070942,9.26,130.97,130.94,17.88200011]
[1765124071125,8.54,130.97,130.94,17.88200011]
[1765124071547,9.26,130.97,130.94,17.88200011]
[1765124071736,8.54,130.97,130.94,17.88200011]
[1765124072252,9.26,130.97,130.94,7.63708568]
[1765124074031,9.26,130.97,130.94,17.88200011]
[1765124074032,8.54,130.97,130.94,17.88200011]
[1765124074355,9.26,130.97,130.94,17.88200011]
[1765124075428,0.72,130.99,130.95,10.56491443]
[1765124075633,0.72,130.98,130.95,10.24491443]
[1765124077480,0.72,130.98,130.96,7.63591936]
[1765124084643,0.72,130.98,130.96,11.49501453]
[1765124084837,0.72,130.99,130.96,11.49501453]
[1765124085161,12.66904009,131.03,130.97,4.17909517]
[1765124085342,0.72,131.01,130.97,66.37909517]
[1765124085744,0.72,131.01,130.97,66.05909517]
[1765124086644,12.21213857,131.01,130.97,62.2]
[1765124086858,12.66904009,131.0,130.95,7.63632009]
[1765124087073,8.52,130.99,130.95,7.63632009]
[1765124087365,9.24,130.99,130.95,7.63632009]
[1765124087575,0.72,130.98,130.95,7.63632009]
[1765124087952,0.72,130.98,130.94,7.63689784]
[1765124088966,8.35486319,130.98,130.94,7.63689784]
[1765124089472,0.72,130.97,130.94,7.63689784]
[1765124090854,0.72,130.97,130.94,11.49599301]
[1765124091078,0.72,130.98,130.94,11.81599301]
[1765124091453,0.72,130.98,130.94,11.49599301]
[1765124092465,0.72,130.98,130.94,7.63689784]
[1765124092672,0.72,130.98,130.94,30.58870723]
[1765124093780,0.72,130.98,130.94,26.72961206]
[1765124096078,0.72,130.98,130.94,27.04961206]
[1765124096375,0.72,130.98,130.94,7.63689784]
[1765124097871,8.35478092,130.98,130.94,7.63689784]
[1765124098269,0.72,130.97,130.94,7.63689784]
[1765124098470,4.57909517,130.97,130.93,23.9464067]
[1765124098770,0.72,130.97,130.93,23.9464067]
[1765124098976,0.72,130.96,130.93,23.9464067]
[1765124100587,12.21505333,130.96,130.92,7.63808298]
[1765124100756,20.73505333,130.96,130.91,7.63840201]
[1765124100955,0.72,130.95,130.92,7.63820663]
[1765124101472,0.72,130.95,130.93,7.63763337]
[1765124101661,0.72,130.95,130.92,7.63805435]
[1765124101860,0.72,130.95,130.91,7.63883584]
[1765124103479,0.72,130.95,130.91,30.91502061]
[1765124103960,0.72,130.95,130.91,7.63883584]
[1765124104882,0.72,130.97,130.93,3.85909517]
[1765124105059,0.72,130.96,130.93,3.85909517]
[1765124105253,21.18904009,130.99,130.92,0.32]
[1765124105254,24.96420481,130.99,130.94,3.85909517]
[1765124105477,24.96420481,130.99,130.94,4.17909517]
[1765124105685,0.72,130.98,130.94,3.85909517]
[1765124106258,0.72,130.98,130.95,7.63650248]
[1765124106479,8.52,130.99,130.95,11.81559765]
[1765124106784,8.52,130.99,130.95,11.49559765]
[1765124106785,0.72,130.98,130.95,11.49559765]
[1765124108685,0.72,130.98,130.95,10.10661747]
[1765124108885,0.72,130.98,130.94,7.63673773]
[1765124109188,2.47011499,130.95,130.89,13.18048236]
[1765124109484,10.99011499,130.95,130.91,7.63836217]
[1765124109781,0.72,130.94,130.91,7.63836217]
[1765124109982,8.3573716,130.94,130.89,19.09946049]
[1765124110162,8.3573716,130.94,130.88,7.6404393]
[1765124110163,2.47011499,130.92,130.88,7.6404393]
[1765124110362,2.47011499,130.92,130.86,7.6416456]
[1765124110363,2.47011499,130.91,130.86,7.6416456]
[1765124110577,2.47011499,130.89,130.86,7.6416456]
[1765124110963,2.47011499,130.89,130.83,19.10831386]
[1765124110964,3.19011499,130.88,130.83,19.10831386]
[1765124111368,3.19011499,130.87,130.82,7.64358029]
[1765124111667,3.19011499,130.87,130.81,21.58145725]
[1765124111871,0.72,130.86,130.81,21.58145725]
[1765124112171,0.72,130.86,130.82,21.58034278]
[1765124112375,0.72,130.86,130.83,2.47011499]
[1765124112574,0.72,130.88,130.84,2.47011499]
[1765124112878,9.24,130.89,130.85,2.47011499]
[1765124114081,9.24,130.89,130.86,7.64175454]
[1765124114685,8.52,130.89,130.86,7.64175454]
[1765124115188,0.72,130.88,130.86,7.64175454]
[1765124115683,0.72,130.88,130.85,7.64218782]
[1765124115888,3.19011499,130.88,130.84,7.64268846]
[1765124116100,10.83107678,130.88,130.84,7.64268846]
[1765124116279,0.72,130.87,130.84,7.64268846]
[1765124116984,0.72,130.87,130.84,10.11280345]
[1765124117179,0.72,130.87,130.84,7.64268846]
[1765124117385,0.72,130.87,130.83,7.64345668]
[1765124117896,3.19011499,130.87,130.83,7.64345668]
[1765124118195,10.83162947,130.87,130.82,7.64409111]
[1765124118394,3.19011499,130.86,130.82,7.64409111]
[1765124118891,7.64151448,130.87,130.82,7.64409111]
[1765124118892,0.72,130.85,130.82,7.64409111]
[1765124119290,7.64151448,130.87,130.82,10.1142061]
[1765124119492,0.72,130.87,130.82,10.4342061]
[1765124119670,0.72,130.86,130.82,10.4342061]
[1765124119871,0.72,130.86,130.83,2.47011499]
[1765124120071,0.72,130.86,130.82,10.1142061]
[1765124120391,0.72,130.86,130.82,29.22443389]
[1765124120588,0.72,130.86,130.83,2.47011499]
[1765124121086,0.72,130.86,130.82,29.22443389]
[1765124121564,0.72,130.86,130.83,2.47011499]
[1765124122172,0.69,130.88,130.84,10.43303764]
[1765124122698,0.69,130.88,130.84,10.11303764]
[1765124123393,8.52,130.89,130.85,2.47011499]
[1765124123577,0.69,130.88,130.85,2.47011499]
[1765124123778,0.69,130.88,130.84,29.22034427]
[1765124123984,0.69,130.88,130.84,7.64292265]
[1765124124283,2.47011499,130.87,130.83,7.64330159]
[1765124124696,2.47011499,130.85,130.82,7.64403632]
[1765124125212,2.47011499,130.86,130.82,7.64403632]
[1765124125494,0.69,130.85,130.81,7.64467548]
[1765124127494,0.69,130.85,130.8,26.85793601]
[1765124128606,8.33243223,130.85,130.8,7.74525993]
[1765124128803,16.85243223,130.85,130.8,7.74525993]
[1765124129010,2.47011499,130.83,130.8,0.1]
[1765124129186,2.47011499,130.81,130.8,0.1]
[1765124129377,27.44473539,130.81,130.8,0.1]
[1765124129699,28.13473539,130.81,130.8,0.1]
[1765124129878,61.0851731,130.81,130.76,0.1]
[1765124130082,11.97005991,130.8,130.76,0.1]
[1765124130478,0.69,130.79,130.76,0.1]
[1765124133092,27.29897899,130.81,130.76,0.1]
[1765124133287,0.69,130.8,130.76,0.1]
[1765124133707,0.69,130.8,130.76,7.74759865]
[1765124134806,10.80548317,130.8,130.76,7.74759865]
[1765124135174,0.69,130.79,130.76,7.74759865]
[1765124135406,0.69,130.79,130.76,0.1]
[1765124135597,3.16011499,130.79,130.76,0.1]
[1765124135788,10.80648895,130.79,130.76,0.1]
[1765124136103,0.69,130.78,130.76,0.1]
[1765124136780,3.16011499,130.78,130.76,0.1]
[1765124136981,10.99011499,130.77,130.76,0.1]
[1765124137287,11.68011499,130.77,130.76,0.1]
[1765124137593,20.49005991,130.77,130.76,0.1]
[1765124138188,9.21,130.77,130.76,0.1]
[1765124138403,0.69,130.77,130.76,0.1]
[1765124138991,24.828864,130.78,130.76,0.1]
[1765124139212,25.518864,130.78,130.76,0.1]
[1765124139411,24.828864,130.78,130.76,0.1]
[1765124139716,11.97005991,130.77,130.76,0.1]
[1765124140017,19.61707375,130.77,130.76,0.1]
[1765124140512,19.61707375,130.77,130.75,0.1]
[1765124140721,27.58892391,130.75,130.74,0.1]
[1765124140921,27.58892391,130.75,130.68,19.85005391]
[1765124140922,8.80994492,130.74,130.68,0.1]
[1765124141083,2.47011499,130.73,130.69,7.65154629]
[1765124141288,8.52,130.72,130.7,7.65085436]
[1765124141714,20.49005991,130.74,130.7,7.65085436]
[1765124141914,9.21,130.74,130.7,0.68]
[1765124142148,7.64707192,130.77,130.71,0.68]
[1765124142149,11.68011499,130.76,130.71,0.68]
[1765124142325,2.47011499,130.75,130.69,29.93104696]
[1765124142616,3.16011499,130.75,130.69,29.93104696]
[1765124142807,8.52,130.76,130.68,7.75220223]
[1765124142808,2.47011499,130.72,130.68,7.75220223]
[1765124142994,8.52,130.72,130.68,7.75220223]
[1765124143190,9.21,130.72,130.68,8.43220223]
[1765124143511,8.52,130.72,130.69,0.68]
[1765124144384,8.52,130.72,130.68,0.1]
[1765124144385,2.47011499,130.7,130.68,0.1]
[1765124144591,8.80994492,130.68,130.66,0.2]
[1765124144803,2.47011499,130.67,130.66,0.2]
[1765124145012,3.16011499,130.67,130.66,0.2]
[1765124146017,2.47011499,130.69,130.66,7.8534517]
[1765124146205,0.69,130.69,130.66,7.8534517]
[1765124146599,3.16011499,130.69,130.66,7.8534517]
[1765124146802,8.52,130.7,130.66,8.5334517]
[1765124147194,7.33844054,130.72,130.67,0.68]
[1765124147394,9.21,130.72,130.67,7.32844054]
[1765124147616,79.99101316,130.8,130.69,6.64844054]
[1765124147617,15.16844054,130.76,130.69,6.64844054]
[1765124147822,9.21,130.76,130.71,6.64844054]
[1765124148009,9.21,130.76,130.72,26.7747858]
[1765124148208,8.52,130.76,130.73,0.68]
[1765124148403,9.21,130.76,130.72,26.7747858]
[1765124148615,9.21,130.76,130.72,34.10322634]
[1765124148814,25.11880892,130.8,130.72,33.42322634]
[1765124149001,19.11082199,130.88,130.78,6.64844054]
[1765124149002,0.69,130.82,130.78,6.64844054]
[1765124149397,8.54,130.83,130.79,6.64844054]
[1765124149648,0.69,130.82,130.78,7.32844054]
[1765124150118,0.69,130.82,130.79,7.64584448]
[1765124150297,8.54,130.83,130.79,7.64584448]
[1765124150298,8.54,130.83,130.79,14.97428502]
[1765124150500,8.54,130.83,130.8,6.64844054]
[1765124150827,9.26,130.83,130.79,14.29428502]
[1765124150999,9.26,130.83,130.79,15.01428502]
[1765124151000,8.54,130.83,130.79,15.01428502]
[1765124151201,9.26,130.83,130.79,33.40889622]
[1765124152234,9.26,130.83,130.79,34.12889622]
[1765124152798,9.26,130.83,130.8,7.36844054]
[1765124152799,8.54,130.83,130.8,7.36844054]
[1765124153006,9.26,130.83,130.79,26.48305174]
[1765124153240,0.72,130.82,130.79,19.1146112]
[1765124153420,0.72,130.82,130.78,14.29486965]
[1765124153618,0.72,130.82,130.79,6.64844054]
[1765124153830,0.72,130.82,130.78,15.01486965]
[1765124154138,8.54,130.83,130.79,0.72]
[1765124154344,8.54,130.83,130.79,7.36844054]
[1765124154634,8.54,130.83,130.8,6.64844054]
[1765124154804,0.72,130.83,130.8,7.64525993]
[1765124155008,9.24,130.85,130.8,14.29370047]
[1765124155221,8.52,130.85,130.81,7.36844054]
[1765124155421,8.52,130.85,130.82,6.64844054]
[1765124155627,0.67,130.84,130.8,33.40685031]
[1765124155827,8.52,130.85,130.8,34.07685031]
[1765124156045,9.19,130.85,130.81,0.67]
[1765124156543,9.19,130.85,130.81,7.31844054]
[1765124156732,0.67,130.85,130.82,7.64409111]
[1765124157189,16.12838546,130.87,130.82,7.64409111]
[1765124157438,0.67,130.87,130.83,0.67]
[1765124157640,0.67,130.87,130.83,7.31844054]
[1765124157843,9.19,130.88,130.83,7.31844054]
[1765124158020,7.31844054,130.87,130.82,26.7543189]
[1765124158433,0.67,130.86,130.82,34.07275944]
[1765124158820,0.67,130.86,130.83,6.64844054]
[1765124159039,0.67,130.86,130.82,34.07275944]
[1765124159340,0.67,130.86,130.82,26.7543189]
[1765124159536,0.67,130.86,130.82,33.40275944]
[1765124159710,0.67,130.86,130.82,34.07275944]
[1765124159911,0.67,130.86,130.82,26.7543189]
[1765124160341,0.67,130.86,130.83,6.64844054]
[1765124160538,0.67,130.86,130.82,34.07275944]
[1765124161558,9.47994492,130.9,130.85,6.64844054]
[1765124161852,0.67,130.9,130.85,6.64844054]
[1765124162040,0.67,130.89,130.85,6.64844054]
[1765124162247,0.67,130.89,130.84,7.31844054]
[1765124162429,0.67,130.89,130.85,6.64844054]
[1765124163037,0.67,130.89,130.86,7.64175454]
[1765124163354,16.978864,130.91,130.86,34.06458144]
[1765124163669,0.67,130.9,130.86,34.06458144]
[1765124164324,0.67,130.9,130.86,27.4161409]
[1765124164525,0.67,130.9,130.87,6.64844054]
[1765124164934,0.67,130.9,130.86,34.06458144]
[1765124165535,8.52,130.92,130.87,6.64844054]
[1765124165852,9.19,130.92,130.88,6.64844054]
[1765124166055,0.87,130.94,130.89,6.64844054]
[1765124166254,0.67,130.93,130.88,7.31844054]
[1765124166463,0.67,130.93,130.88,6.64844054]
[1765124166631,6.64844054,130.91,130.86,26.7461409]
[1765124166825,6.64844054,130.92,130.86,33.39458144]
[1765124167026,7.31844054,130.92,130.86,33.39458144]
[1765124167236,0.67,130.91,130.86,34.06458144]
[1765124168060,6.64844054,130.88,130.85,7.64231818]
[1765124168264,6.64844054,130.88,130.84,7.64274328]
[1765124168468,0.67,130.87,130.84,7.64274328]
[1765124168655,7.31844054,130.89,130.84,6.64844054]
[1765124169045,31.47730454,130.91,130.86,7.64175454]
[1765124169250,0.67,130.9,130.86,7.64175454]
[1765124169444,0.67,130.91,130.87,7.31844054]
[1765124169672,16.978864,130.93,130.88,6.64844054]
[1765124169845,0.67,130.93,130.88,6.64844054]
[1765124170052,0.67,130.93,130.87,0.67]
[1765124170053,0.67,130.93,130.89,7.31844054]
[1765124170248,7.31844054,130.93,130.87,6.64844054]
[1765124170449,16.12838546,130.93,130.87,6.64844054]
[1765124170762,0.67,130.92,130.87,10.25221727]
[1765124171142,0.67,130.92,130.9,7.6394194]
[1765124171642,9.39,130.94,130.9,7.6394194]
[1765124171951,9.39,130.94,130.9,17.89163667]
[1765124172150,9.39,130.94,130.9,36.99018518]
[1765124172447,9.39,130.94,130.9,37.66018518]
[1765124172855,8.72,130.94,130.91,10.92221727]
[1765124173052,0.2,130.94,130.92,10.25221727]
[1765124173252,0.2,130.94,130.93,17.88988625]
[1765124173568,0.2,130.94,130.93,18.55988625]
[1765124175471,0.2,130.94,130.93,17.88988625]
[1765124175647,0.2,130.94,130.93,18.55988625]
[1765124175981,1e-08,130.94,130.93,18.55988625]
[1765124178368,24.828864,131.01,130.93,18.55988625]
[1765124178369,0.67,131.01,130.93,84.65234853]
[1765124178588,0.87,131.03,130.99,10.25221727]
[1765124178791,0.87,131.03,130.97,8.52]
[1765124178965,0.87,131.03,130.98,10.25221727]
[1765124179283,0.87,131.03,130.99,7.63417054]
[1765124179462,0.67,131.02,130.99,17.88638781]
[1765124179666,0.67,131.02,130.99,36.97181417]
[1765124180482,0.2,131.03,131.0,10.25221727]
[1765124181110,0.92,131.03,131.0,10.25221727]
[1765124181877,0.2,131.03,131.01,7.63300511]
[1765124184200,0.92,131.03,131.01,7.63300511]
[1765124185092,0.72,131.02,131.0,7.63337332]
[1765124185800,0.2,131.03,131.0,17.88559059]
[1765124186093,0.92,131.03,131.0,17.88559059]
[1765124186269,0.92,131.03,131.0,7.63337332]
[1765124186468,0.72,131.02,130.98,7.63458135]
[1765124186699,10.97221727,131.02,130.97,7.63498875]
[1765124187067,0.72,131.01,130.97,7.63498875]
[1765124187262,0.72,131.01,130.98,7.6346822]
[1765124187893,8.72,131.03,131.0,7.63358778]
[1765124188075,9.44,131.03,131.0,7.63358778]
[1765124188282,0.72,131.02,131.0,7.63358778]
[1765124188483,0.72,131.02,130.99,17.88619108]
[1765124188877,0.72,131.02,130.99,7.63397381]
[1765124189194,10.97221727,131.02,130.98,7.63465738]
[1765124189678,0.72,131.01,130.99,7.63408962]
[1765124190069,0.72,131.01,130.98,7.63475339]
[1765124190779,8.35302372,131.01,130.98,7.63475339]
[1765124190994,0.72,131.01,130.98,7.63475339]
[1765124191195,0.72,131.01,130.99,10.25221727]
[1765124191398,17.52994492,131.03,131.0,10.25221727]
[1765124191399,0.2,131.03,131.0,10.25221727]
[1765124191698,0.2,131.03,131.01,10.25221727]
[1765124192072,0.2,131.03,131.02,7.63242253]
[1765124192900,8.80994492,131.02,130.96,10.25221727]
[1765124193106,19.06216219,131.02,130.97,7.63496838]
[1765124193273,0.72,131.01,130.97,7.63496838]
[1765124194080,8.35327481,131.01,130.97,7.63496838]
[1765124194277,0.72,131.0,130.97,7.63496838]
[1765124195988,0.72,131.0,130.96,7.63568505]
[1765124196185,8.35360826,131.0,130.95,19.09047987]
[1765124196489,18.60582553,131.0,130.95,19.09047987]
[1765124196692,18.60582553,131.0,130.95,7.63650248]
[1765124196693,10.97221727,130.99,130.95,7.63650248]
[1765124197112,0.72,130.98,130.95,7.63650248]
[1765124198096,0.72,130.98,130.94,26.72902973]